fUSD/lending_fUSD_20240330
["ID","MTS","AMOUNT","RATE_DAILY","PERIOD"]
[321054838,1711831847520,-7170.98,0.00041095,4]
[321054839,1711831847530,-500.0,0.00041095,4]
[321054840,1711831847539,-500.0,0.00041095,4]
[321054841,1711831847549,-500.0,0.00041095,4]
[321054842,1711831847559,-933.82,0.00041095,4]
[321054843,1711831847568,-548.95,0.00041095,4]
[321054844,1711831847578,-500.0,0.00041095,4]
[321054845,1711831847588,-500.0,0.00041095,4]
[321054846,1711831847597,-500.0,0.00041095,4]
[321054847,1711831847607,-1792.71,0.00041095,4]
[321054848,1711831847616,-500.0,0.00041095,4]
[321054849,1711831847626,-500.0,0.00041095,4]
[321054850,1711831847641,-11349.19,0.00041095,4]
[321054851,1711831847650,-291.49759206,0.00041095,4]
[321054852,1711831847659,-500.0,0.00041095,4]
[321054853,1711831847668,-500.0,0.00041095,4]
[321054854,1711831847680,-704.78,0.00041095,4]
[321054855,1711831847689,-392.01207718,0.00041095,4]
[321054856,1711831847698,-500.0,0.00041095,4]
[321054857,1711831847708,-293.28830485,0.00041095,4]
[321054858,1711831847719,-500.0,0.00041095,4]
[321054859,1711831847728,-500.0,0.00041095,4]
[321054860,1711831847739,-500.0,0.00041095,4]
[321054861,1711831847748,-2497.24,0.00041095,4]
[321054862,1711831847759,-1515.4,0.00041095,4]
[321054863,1711831847769,-232.29045744,0.00041095,4]
[321054864,1711831847778,-1337.86,0.00041095,4]
[321054865,1711831847788,-593.86182024,0.00041095,4]
[321054866,1711831847798,-2592.08,0.00041095,4]
[321054867,1711831847808,-1736.15,0.00041095,4]
[321054868,1711831847819,-500.0,0.00041095,4]
[321054869,1711831847828,-1802.55,0.00041095,4]
[321054870,1711831847838,-500.0,0.00041095,4]
[321054871,1711831847847,-500.0,0.00041095,4]
[321054872,1711831847857,-781.1,0.00041095,4]
[321054873,1711831847866,-500.0,0.00041095,4]
[321054874,1711831847876,-532.28925473,0.00041095,4]
[321054875,1711831847886,-500.0,0.00041095,4]
[321054876,1711831847896,-1044.11,0.00041095,4]
[321054877,1711831847905,-471.05526906,0.00041095,4]
[321054878,1711831847915,-500.0,0.00041095,4]
[321054879,1711831847924,-683.79,0.00041095,2]
[321054880,1711831847933,-500.0,0.00041095,4]
[321054881,1711831847943,-500.0,0.00041095,4]
[321054882,1711831847952,-500.0,0.00041095,4]
[321054883,1711831847961,-500.0,0.00041095,4]
[321054884,1711831847971,-500.0,0.00041095,4]
[321054885,1711831847981,-319.3452882,0.00041095,4]
[321054886,1711831847990,-500.0,0.00041095,4]
[321054887,1711831847999,-500.0,0.00041095,4]
[321054888,1711831848009,-500.0,0.00041095,4]
[321054889,1711831848018,-500.0,0.00041095,4]
[321054890,1711831848028,-3150.79,0.00041095,4]
[321054891,1711831848037,-3539.61,0.00041095,4]
[321054892,1711831848047,-500.0,0.00041095,4]
[321054893,1711831848056,-1154.04,0.00041095,4]
[321054894,1711831848065,-1540.25,0.00041095,4]
[321054895,1711831848075,-500.0,0.00041095,4]
[321054896,1711831848084,-500.0,0.00041095,4]
[321054897,1711831848094,-500.0,0.00041095,4]
[321054898,1711831848104,-1166.4,0.00041095,4]
[321054899,1711831848114,-709.86,0.00041095,4]
[321054900,1711831848124,-500.0,0.00041095,4]
[321054901,1711831848134,-4029.81,0.00041095,4]
[321054902,1711831848143,-500.0,0.00041095,4]
[321054903,1711831848154,-3909.7,0.00041095,4]
[321054904,1711831848163,-638.4413,0.00041095,7]
[321054905,1711831848174,-500.0,0.00041095,4]
[321054906,1711831848183,-500.0,0.00041095,4]
[321054907,1711831848191,-500.0,0.00041095,4]
[321054908,1711831848201,-500.0,0.00041095,4]
[321054909,1711831848210,-500.0,0.00041095,4]
[321054910,1711831848219,-500.0,0.00041095,4]
[321054911,1711831848229,-512.67750589,0.00041095,4]
[321054912,1711831848238,-500.0,0.00041095,4]
[321054913,1711831848247,-500.0,0.00041095,4]
[321054914,1711831848256,-1449.38,0.00041095,4]
[321054915,1711831848265,-500.0,0.00041095,4]
[321054916,1711831848276,-1574.21,0.00041095,4]
[321054917,1711831848286,-500.0,0.00041095,4]
[321054918,1711831848295,-586.64,0.00041095,4]
[321054919,1711831848305,-3210.08,0.00041095,4]
[321054920,1711831848315,-354.65961229,0.00041095,4]
[321054921,1711831848324,-500.0,0.00041095,4]
[321054922,1711831848335,-1535.66,0.00041095,4]
[321054923,1711831848344,-500.0,0.00041095,4]
[321054924,1711831848353,-2538.38,0.00041095,4]
[321054925,1711831848363,-500.0,0.00041095,4]
[321054926,1711831848372,-500.0,0.00041095,4]
[321054927,1711831848381,-944.05,0.00041095,4]
[321054928,1711831848391,-500.0,0.00041095,4]
[321054929,1711831848399,-527.61,0.00041095,4]
[321054930,1711831848409,-500.0,0.00041095,4]
[321054931,1711831848418,-500.0,0.00041095,4]
[321054932,1711831848430,-1081.59,0.00041095,4]
[321054933,1711831848439,-500.0,0.00041095,4]
[321054934,1711831848449,-500.0,0.00041095,4]
[321054935,1711831848458,-805.49,0.00041095,4]
[321054936,1711831848467,-500.0,0.00041095,4]
[321054937,1711831848477,-500.0,0.00041095,4]
[321054938,1711831848486,-500.0,0.00041095,4]
[321054939,1711831848497,-500.0,0.00041095,4]
[321054940,1711831848506,-1000.0,0.00041095,4]
[321054941,1711831848516,-887.4,0.00041095,4]
[321054942,1711831848525,-2206.76,0.00041095,4]
[321054943,1711831848535,-1085.79,0.00041095,4]
[321054944,1711831848545,-500.0,0.00041095,4]
[321054945,1711831848554,-500.0,0.00041095,4]
[321054946,1711831848564,-500.0,0.00041095,4]
[321054947,1711831848574,-587.08243458,0.00041095,4]
[321054948,1711831848583,-500.0,0.00041095,4]
[321054949,1711831848592,-500.0,0.00041095,4]
[321054950,1711831848601,-500.0,0.00041095,4]
[321054951,1711831848611,-500.0,0.00041095,4]
[321054952,1711831848620,-648.13,0.00041095,4]
[321054953,1711831848630,-696.79,0.00041095,4]
[321054954,1711831848641,-3102.25,0.00041095,4]
[321054955,1711831848651,-3670.99,0.00041095,4]
[321054956,1711831848660,-500.0,0.00041095,4]
[321054957,1711831848670,-500.0,0.00041095,4]
[321054958,1711831848681,-500.0,0.00041095,4]
[321054959,1711831848691,-500.0,0.00041095,4]
[321054960,1711831848700,-836.56,0.00041095,4]
[321054961,1711831848710,-583.17135857,0.00041095,4]
[321054962,1711831848721,-500.0,0.00041095,4]
[321054963,1711831848731,-646.44,0.00041095,4]
[321054964,1711831848741,-514.3,0.00041095,4]
[321054965,1711831848750,-500.0,0.00041095,4]
[321054966,1711831848760,-500.0,0.00041095,4]
[321054967,1711831848770,-500.0,0.00041095,4]
[321054968,1711831848779,-500.0,0.00041095,4]
[321054969,1711831848788,-1050.57,0.00041095,4]
[321054970,1711831848797,-500.0,0.00041095,4]
[321054971,1711831848807,-500.0,0.00041095,4]
[321054972,1711831848816,-500.0,0.00041095,4]
[321054973,1711831848826,-500.0,0.00041095,4]
[321054974,1711831848835,-1848.73,0.00041095,4]
[321054975,1711831848844,-445.87889596,0.00041095,4]
[321054976,1711831848853,-500.0,0.00041095,4]
[321054977,1711831848862,-500.0,0.00041095,4]
[321054978,1711831848871,-500.0,0.00041095,4]
[321054979,1711831848881,-527.97019462,0.00041095,4]
[321054980,1711831848890,-500.0,0.00041095,4]
[321054981,1711831848899,-500.0,0.00041095,4]
[321054982,1711831849076,-952.55,0.00041095,4]
[321054983,1711831849086,-564.11,0.00041095,4]
[321054984,1711831849095,-1148.52,0.00041095,4]
[321054985,1711831849105,-500.0,0.00041095,4]
[321054986,1711831849114,-500.0,0.00041095,4]
[321054987,1711831849123,-568.25,0.00041095,4]
[321054988,1711831849132,-500.0,0.00041095,4]
[321054989,1711831849142,-500.0,0.00041095,4]
[321054990,1711831849152,-1622.41,0.00041095,4]
[321054991,1711831849161,-225.49959829,0.00041095,2]
[321054992,1711831849171,-583.15,0.00041095,4]
[321054993,1711831849182,-500.0,0.00041095,4]
[321054994,1711831849193,-254.05071889,0.00041095,4]
[321054995,1711831849202,-500.0,0.00041095,4]
[321054996,1711831849212,-500.0,0.00041095,4]
[321054997,1711831849221,-656.18,0.00041095,4]
[321054998,1711831849230,-399.51445237,0.00041095,4]
[321054999,1711831849239,-500.0,0.00041095,4]
[321055000,1711831849249,-500.0,0.00041095,4]
[321055001,1711831849259,-686.41,0.00041095,4]
[321055002,1711831849269,-714.82,0.00041095,4]
[321055003,1711831849280,-3512.24,0.00041095,4]
[321055004,1711831849290,-500.0,0.00041095,4]
[321055005,1711831849300,-500.0,0.00041095,4]
[321055006,1711831849309,-500.0,0.00041095,4]
[321055007,1711831849319,-843.97,0.00041095,4]
[321055008,1711831849329,-500.0,0.00041095,4]
[321055009,1711831849339,-500.0,0.00041095,4]
[321055010,1711831849348,-500.0,0.00041095,2]
[321055011,1711831849358,-500.0,0.00041095,4]
[321055012,1711831849371,-500.0,0.00041095,4]
[321055013,1711831849380,-1141.64,0.00041095,4]
[321055014,1711831849390,-500.0,0.00041095,4]
[321055015,1711831849399,-500.0,0.00041095,4]
[321055016,1711831849409,-500.0,0.00041095,4]
[321055017,1711831849418,-3341.38,0.00041095,4]
[321055018,1711831849429,-500.0,0.00041095,4]
[321055019,1711831849438,-2533.87,0.00041095,4]
[321055020,1711831849448,-3619.81,0.00041095,4]
[321055021,1711831849457,-632.43,0.00041095,4]
[321055022,1711831849466,-500.0,0.00041095,4]
[321055023,1711831849475,-856.62,0.00041095,4]
[321055024,1711831849485,-500.0,0.00041095,4]
[321055025,1711831849496,-500.0,0.00041095,4]
[321055026,1711831849505,-500.0,0.00041095,4]
[321055027,1711831849514,-500.0,0.00041095,4]
[321055028,1711831849524,-500.0,0.00041095,4]
[321055029,1711831849533,-769.48,0.00041095,4]
[321055030,1711831849543,-500.0,0.00041095,4]
[321055031,1711831849553,-500.0,0.00041095,4]
[321055032,1711831849562,-561.94509311,0.00041095,4]
[321055033,1711831849571,-5380.36,0.00041095,4]
[321055034,1711831849581,-634.4877499,0.00041095,4]
[321055035,1711831849590,-1254.85,0.00041095,4]
[321055036,1711831849599,-905.62,0.00041095,4]
[321055037,1711831849609,-2291.08,0.00041095,4]
[321055038,1711831849621,-1000.0,0.00041096,2]
[321055039,1711831849634,-1000.0,0.00041096,2]
[321055040,1711831849644,-1000.0,0.00041096,2]
[321055041,1711831849654,-1000.0,0.00041096,2]
[321055042,1711831849663,-1000.0,0.00041096,2]
[321055043,1711831849674,-1000.0,0.00041096,2]
[321055044,1711831849683,-1000.0,0.00041096,2]
[321055045,1711831849693,-1000.0,0.00041096,2]
[321055046,1711831849702,-1000.0,0.00041096,2]
[321055047,1711831849713,-246.0,0.00041096,2]
[321055048,1711831849723,-180.0,0.00041096,2]
[321055049,1711831849733,-491.0,0.00041096,30]
[321055050,1711831849742,-1027.0,0.000411,10]
[321055051,1711831849751,-3000.0,0.000411,2]
[321055052,1711831849761,-873.3534321,0.00041119,2]
[321055053,1711831849780,-231.354962,0.00041147,30]
[321055054,1711831849791,-1051.0279669,0.00041176,2]
[321055055,1711831849800,-170.07,0.00041178,2]
[321055056,1711831849810,-156.5,0.00041216,2]
[321055057,1711831849820,-563.33023548,0.00041243,2]
[321055058,1711831849830,-18136.37170341,0.00041245,2]
[321055059,1711831849841,-153.24384006,0.00041267,11]
[321055060,1711831849850,-170.37734038,0.00041267,2]
[321055061,1711831849860,-4549.75728934,0.00041268,15]
[321055062,1711831849870,-165.4836938,0.00041268,2]
[321055063,1711831849880,-798.19507041,0.00041269,33]
[321055064,1711831849889,-601.60396357,0.00041269,2]
[321055065,1711831849899,-204.76482715,0.00041269,2]
[321055066,1711831849908,-1239.43757374,0.00041269,2]
[321055067,1711831849917,-150.0,0.000413,16]
[321055068,1711831849928,-473.0,0.000413,16]
[321055069,1711831849938,-706.10715857,0.000413,3]
[321055070,1711831849948,-150.0,0.000413,6]
[321055071,1711831849959,-221.0,0.000413,30]
[321055072,1711831849969,-500.0,0.0004134,4]
[321055073,1711831849978,-804.6526223,0.00041341,2]
[321055074,1711831849988,-11051.8418081,0.00041341,2]
[321055075,1711831849998,-4987.8431854,0.00041341,2]
[321055076,1711831850008,-157.033105,0.0004136,4]
[321055077,1711831850018,-157.033105,0.00041361,3]
[321055078,1711831850029,-157.033105,0.00041362,4]
[321055079,1711831850039,-157.033105,0.00041363,3]
[321055080,1711831850048,-157.033105,0.00041364,4]
[321055081,1711831850058,-157.033105,0.00041365,3]
[321055082,1711831850067,-563.33023548,0.00041365,2]
[321055083,1711831850077,-157.033105,0.00041366,4]
[321055084,1711831850087,-500.0,0.00041366,4]
[321055085,1711831850097,-563.33023548,0.00041366,2]
[321055086,1711831850107,-155.43754809,0.00041366,4]
[321055087,1711831850116,-155.0,0.00041366,4]
[321055088,1711831850126,-205.18817647,0.00041366,4]
[321055089,1711831850136,-150.0,0.00041367,30]
[321055090,1711831850145,-1007.56593417,0.00041367,60]
[321055091,1711831850155,-157.033105,0.00041367,3]
[321055092,1711831850165,-167821.39594911,0.00041367,2]
[321055093,1711831850176,-160192.99222143,0.00041367,2]
[321055094,1711831850187,-7029.33003366,0.00041367,2]
[321055095,1711831850196,-300.0,0.00041367,2]
[321055096,1711831850206,-300.0,0.00041367,2]
[321055097,1711831850215,-300.0,0.00041367,2]
[321055098,1711831850225,-300.0,0.00041367,2]
[321055099,1711831850235,-300.0,0.00041367,2]
[321055100,1711831850244,-300.0,0.00041367,2]
[321055101,1711831850254,-300.0,0.00041367,2]
[321055102,1711831850264,-500.0,0.00041367,4]
[321055103,1711831850274,-500.0,0.00041367,4]
[321055104,1711831850283,-500.0,0.00041367,4]
[321055105,1711831850293,-500.0,0.00041367,4]
[321055106,1711831850303,-174.0,0.00041368,7]
[321055107,1711831850312,-150.0,0.00041368,30]
[321055108,1711831850322,-866342.35550514,0.00041368,4]
[321055109,1711831851243,-580.84,0.00041085,3]
[321055110,1711831851253,-65.06963473,0.00041093,4]
[321055111,1711831851414,-477.14418609,0.00041093,4]
[321055112,1711831851425,-441.57839705,0.00041093,4]
[321055113,1711831851435,-1331.4400139,0.00041095,4]
[321055114,1711831915335,11831.75786608,0.00015,10]
[321055120,1711831951311,370098.46843563,0.00015,2]
[321055127,1711832041105,21129.00147526,0.0003,2]
[321055136,1711832126700,155.0,0.000285,30]
[321055137,1711832140698,155.0,0.000285,30]
[321055138,1711832158686,155.0,0.00027075,30]
[321055139,1711832176689,155.0,0.00027075,30]
[321055140,1711832196692,155.0,0.00027075,30]
[321055141,1711832214709,155.0,0.00027075,30]
[321055142,1711832228718,155.0,0.00025721,30]
[321055151,1711832652343,508.72738065,0.00041986,30]
[321055591,1711833031945,-2875.5091837,0.00035599,4]
[321055592,1711833031957,-3126.73899836,0.000356,2]
[321055593,1711833031967,-622.64,0.00036176,2]
[321055594,1711833031980,-162.55524012,0.00036573,2]
[321055595,1711833031990,-150.0,0.00037228,3]
[321055596,1711833031999,-150.0,0.00037228,3]
[321055597,1711833032009,-3149.40688435,0.00037229,4]
[321055598,1711833032019,-712.61418707,0.0003723,4]
[321055599,1711833032029,-162.55524012,0.00037649,2]
[321055600,1711833032039,-150.0,0.00037871,2]
[321055601,1711833032048,-20684.01,0.00038044,2]
[321055602,1711833032060,-390.4,0.00038089,2]
[321055603,1711833032070,-4533.5,0.00038111,2]
[321055604,1711833032080,-463.49,0.00038188,2]
[321055605,1711833032090,-195.35,0.0003822,2]
[321055606,1711833032100,-166.9,0.00038226,15]
[321055607,1711833032110,-6738.71,0.00038253,2]
[321055608,1711833032120,-216.91,0.0003828,10]
[321055609,1711833032130,-156.16,0.00038309,2]
[321055610,1711833032139,-622.64,0.0003844,2]
[321055611,1711833032150,-609.6,0.00038536,2]
[321055612,1711833032161,-438.12,0.00038649,2]
[321055613,1711833032170,-162.55524012,0.00038724,2]
[321055614,1711833032180,-156.16,0.00038808,2]
[321055615,1711833032190,-321.28968522,0.00038885,4]
[321055616,1711833032200,-3901.03103699,0.000389,10]
[321055617,1711833032210,-165.7,0.00039231,2]
[321055618,1711833032220,-157.98,0.00039231,2]
[321055619,1711833032230,-157.98,0.00039255,2]
[321055620,1711833032240,-157.98,0.0003928,2]
[321055621,1711833032250,-1264.40619677,0.00039298,4]
[321055622,1711833032259,-157.98,0.00039304,2]
[321055623,1711833032269,-156.16,0.00039307,2]
[321055624,1711833032279,-157.98,0.00039329,2]
[321055625,1711833032288,-157.98,0.00039353,2]
[321055626,1711833032299,-157.98,0.00039378,2]
[321055627,1711833032308,-186.84,0.00039402,2]
[321055628,1711833032319,-157.98,0.00039402,2]
[321055629,1711833032329,-165.94,0.00039423,2]
[321055630,1711833032338,-157.98,0.00039427,2]
[321055631,1711833032348,-2085.81107632,0.000395,2]
[321055632,1711833032358,-3618.8253,0.0003968,2]
[321055633,1711833032368,-14581.76856015,0.0003968,2]
[321055634,1711833032378,-2500.0,0.0003968,2]
[321055635,1711833032387,-8232.68566077,0.0003968,2]
[321055636,1711833032397,-269.35255494,0.0003969,9]
[321055637,1711833032406,-518.0,0.00039699,7]
[321055638,1711833032416,-646.05419307,0.00039779,31]
[321055639,1711833032426,-245000.0,0.0003978,2]
[321055640,1711833032436,-4087.006,0.0003978,2]
[321055641,1711833032445,-157.033106,0.0003979,2]
[321055642,1711833032456,-173.033106,0.00039791,3]
[321055643,1711833032466,-157.033106,0.00039792,2]
[321055644,1711833032475,-173.033106,0.00039793,3]
[321055645,1711833032485,-161.033106,0.00039794,2]
[321055646,1711833032494,-173.033106,0.00039795,3]
[321055647,1711833032503,-161.033106,0.00039796,2]
[321055648,1711833032512,-173.033106,0.00039797,3]
[321055649,1711833032522,-157.033106,0.00039798,2]
[321055650,1711833032531,-4170.61084858,0.000398,13]
[321055651,1711833032540,-162.55524012,0.000398,2]
[321055652,1711833032549,-153.24384006,0.000398,5]
[321055653,1711833032559,-509.46265133,0.000398,2]
[321055654,1711833032568,-156.16,0.00039806,2]
[321055655,1711833032577,-219.44630914,0.0003987,2]
[321055656,1711833032587,-3629.35598094,0.00039877,2]
[321055657,1711833032596,-1886.06704094,0.00039879,4]
[321055658,1711833032606,-161.02677251,0.00039879,30]
[321055659,1711833032616,-244075.83808326,0.0003988,2]
[321055660,1711833032641,-312.98225,0.0003988,2]
[321055661,1711833032661,-339789.06071387,0.0003988,2]
[321055662,1711833032740,-23097.88795294,0.0003988,2]
[321055663,1711833032792,-1929.50154,0.0003988,2]
[321055725,1711833037998,-3913.50444931,0.0003988,2]
[321055729,1711833038056,-20062.01168997,0.0003988,2]
[321055730,1711833038114,-2919.22827669,0.0003988,2]
[321055775,1711833040060,-369.86946825,0.0003988,2]
[321055778,1711833043158,-670.8310699,0.0003988,2]
[321055786,1711833046011,-298.66236919,0.0003988,2]
[321055787,1711833046068,-399.63397372,0.0003988,2]
[321055791,1711833549880,1914.65882905,0.00030101,2]
[321055792,1711833645160,433.25264851,0.00030101,4]
[321055793,1711833672007,571.31680012,0.00030101,4]
[321055848,1711834238261,-250.0,0.00033,3]
[321055849,1711834238271,-300.0,0.00035,3]
[321055850,1711834238280,-597.1,0.00036782,2]
[321055851,1711834238290,-150.0,0.00038428,2]
[321055852,1711834238299,-7994.62226681,0.00038612,4]
[321055853,1711834238308,-4808.94,0.00038613,2]
[321055854,1711834238320,-169.51,0.00038617,2]
[321055855,1711834238330,-8449.026645,0.00038626,2]
[321055856,1711834238341,-15440.973355,0.00038626,2]
[321055857,1711834238350,-250.0,0.00038688,112]
[321055858,1711834238360,-386.24,0.00038708,2]
[321055859,1711834238370,-166.9,0.00038709,15]
[321055860,1711834238379,-1000.0,0.00038751,2]
[321055861,1711834238388,-156.16,0.00039042,2]
[321055862,1711834238398,-597.1,0.00039046,2]
[321055863,1711834238408,-467.82,0.00039107,2]
[321055864,1711834238418,-514.443365,0.0003926,2]
[321055865,1711834238434,-411.186635,0.0003926,2]
[321055866,1711834238443,-925.63,0.0003926,2]
[321055867,1711834238452,-921.6,0.0003926,2]
[321055868,1711834238462,-300.0,0.00039399,2]
[321055869,1711834238470,-1569.74291324,0.000395,2]
[321055871,1711834238479,-13670.07014928,0.0003968,2]
[321055873,1711834238489,-506.0,0.00039699,7]
[321055875,1711834238498,-518.0,0.00039726,7]
[321055877,1711834238507,-14431.05436348,0.0003978,2]
[321055879,1711834238518,-5568.94563652,0.0003978,2]
[321055881,1711834238528,-500.0,0.0003978,2]
[321055883,1711834238537,-34119.76155076,0.0003978,2]
[321055916,1711834240369,-166.9,0.00038637,15]
[321055918,1711834240379,-275.78154187,0.0003978,2]
[321055924,1711834240426,-3621.49548154,0.0003978,2]
[321055927,1711834240438,-701.045,0.0003978,2]
[321056199,1711834243207,-33906.14500708,0.0003978,2]
[321056222,1711834243422,-741.89886887,0.0003978,2]
[321056381,1711835433344,-322.91174239,0.00035707,4]
[321056382,1711835433619,-314.61048587,0.00035707,4]
[321056400,1711835438281,-443.25330064,0.00035706,4]
[321056410,1711835440443,-294.86950079,0.00035706,4]
[321056411,1711835440453,-2490.8198334,0.00035706,4]
[321056412,1711835440465,-1366.03207403,0.00035706,4]
[321056413,1711835440478,-1744.34080941,0.00035706,4]
[321056414,1711835440669,-1057.30636439,0.00035706,4]
[321056422,1711835443774,-621.7729378,0.00035706,4]
[321056423,1711835443786,-136.50023201,0.00035706,4]
[321056424,1711835443795,-298.47626062,0.00035707,4]
[321056425,1711835443832,-1939.51069482,0.00035707,4]
[321056426,1711835443842,-155.0,0.00035707,4]
[321056427,1711835443852,-529.930881,0.00035708,4]
[321056447,1711835880007,20000.0,0.00041981,30]
[321056448,1711836089753,20000.0,0.00041983,30]
[321056479,1711836631564,-651.56085048,0.00034821,4]
[321056480,1711836631574,-150.0,0.00034822,3]
[321056481,1711836631583,-533.77514384,0.00034825,4]
[321056482,1711836631593,-716.53,0.00034826,2]
[321056483,1711836631602,-12144.39220956,0.00035707,4]
[321056484,1711836631612,-5340.38512934,0.00035708,4]
[321056485,1711836631621,-1040.14073,0.00035708,2]
[321056486,1711836631630,-742.66847839,0.00036564,4]
[321056487,1711836631639,-200.0,0.00036629,2]
[321056488,1711836631648,-250.0,0.00036655,112]
[321056489,1711836631657,-1000.0,0.00036658,2]
[321056490,1711836631666,-500.0,0.00036658,2]
[321056491,1711836631676,-4140.97,0.00036663,2]
[321056492,1711836631685,-8013.7,0.00036667,2]
[321056493,1711836631694,-382.4,0.00036724,2]
[321056494,1711836631703,-897.48,0.00036744,2]
[321056495,1711836631712,-216.91,0.00036777,10]
[321056496,1711836631721,-169.44,0.00036788,2]
[321056497,1711836631730,-207.88455727,0.000368,2]
[321056498,1711836631740,-714.0,0.00036922,2]
[321056499,1711836631748,-161.06,0.00036949,2]
[321056500,1711836631758,-161.06,0.00036995,2]
[321056501,1711836631767,-686.26,0.0003703,2]
[321056502,1711836631776,-12838.46715303,0.00037038,2]
[321056503,1711836631785,-161.06,0.00037041,2]
[321056504,1711836631794,-151.37,0.00037041,2]
[321056505,1711836631805,-161.06,0.00037087,2]
[321056506,1711836631814,-716.53,0.0003709,2]
[321056507,1711836631823,-161.06,0.00037134,2]
[321056508,1711836631832,-151.37,0.00037179,2]
[321056509,1711836631842,-151.37,0.00037317,2]
[321056510,1711836631851,-151.37,0.00037455,2]
[321056511,1711836631861,-5017.00236946,0.0003748,4]
[321056512,1711836631871,-8503.18890389,0.00037483,4]
[321056513,1711836631880,-449.91962443,0.00037485,4]
[321056515,1711836631889,-151.37,0.00037593,2]
[321056517,1711836631898,-415.51,0.00037616,2]
[321056518,1711836631907,-322.62,0.00037616,2]
[321056519,1711836631916,-150.0,0.00037616,2]
[321056520,1711836631925,-302.16,0.00037616,2]
[321056521,1711836631934,-240.39,0.00037616,2]
[321056522,1711836631943,-694.88,0.00037616,2]
[321056523,1711836631952,-150.0,0.00037616,2]
[321056524,1711836631961,-150.0,0.00037616,2]
[321056525,1711836631971,-151.37,0.00037731,2]
[321056526,1711836631980,-151.37,0.00037868,2]
[321056527,1711836631989,-151.37,0.00038006,2]
[321056528,1711836631998,-151.42,0.00038027,15]
[321056529,1711836632007,-151.37,0.00038144,2]
[321056530,1711836632017,-170.61,0.00038192,2]
[321056531,1711836632032,-151.37,0.00038282,2]
[321056532,1711836632041,-210.0,0.00038304,5]
[321056533,1711836632051,-151.37,0.0003842,2]
[321056534,1711836632059,-300.0,0.00038438,2]
[321056535,1711836632070,-10641.39558003,0.00038458,2]
[321056536,1711836632079,-17445.09465453,0.00038458,2]
[321056537,1711836632088,-3956.8961,0.00038466,10]
[321056538,1711836632097,-406.85,0.0003848,3]
[321056539,1711836632108,-203.43,0.0003848,3]
[321056540,1711836632117,-610.31,0.0003848,3]
[321056541,1711836632126,-163.86,0.0003848,2]
[321056542,1711836632134,-157.033106,0.00038485,2]
[321056543,1711836632145,-157.033106,0.00038486,3]
[321056544,1711836632154,-157.033106,0.00038487,2]
[321056545,1711836632164,-157.033106,0.00038488,3]
[321056546,1711836632173,-359.17142163,0.00038488,4]
[321056547,1711836632182,-1733.10606588,0.00038488,4]
[321056548,1711836632191,-1310.73729941,0.00038488,4]
[321056549,1711836632200,-172.21342878,0.00038488,4]
[321056550,1711836632209,-1326.78836463,0.00038488,4]
[321056551,1711836632218,-2059.11624542,0.00038488,4]
[321056552,1711836632227,-898.54083325,0.00038489,4]
[321056553,1711836632236,-500.0,0.00038489,15]
[321056554,1711836632246,-199105.01511143,0.0003849,5]
[321056555,1711836632255,-151.37,0.00038558,2]
[321056556,1711836632264,-151.37,0.00038696,2]
[321056557,1711836632273,-170.07,0.00038796,2]
[321056558,1711836632283,-151.37,0.00038834,2]
[321056559,1711836632292,-436.12,0.00038948,2]